fUST/lending_fUST_20250428
["ID","MTS","AMOUNT","RATE_DAILY","PERIOD"]
[359216413,1745828850136,-396.8035672,0.00027248,4]
[359216438,1745828946086,-854.20780271,0.0002,2]
[359216439,1745828946111,-322.17190266,0.0002,2]
[359216440,1745828946131,-932.70328562,0.00022,7]
[359216441,1745828946150,-826.28514637,0.00027397,120]
[359216503,1745829032294,-151.0,0.00027166,2]
[359216505,1745829032304,-207.4,0.00027166,2]
[359216507,1745829032314,-3909.911299,0.00027248,4]
[359216508,1745829032323,-557.41616594,0.00027397,120]
[359216509,1745829032332,-318.0053917,0.00027813,2]
[359216510,1745829032342,-160.0,0.00027878,2]
[359216512,1745829032351,-1200.0,0.00027887,2]
[359216514,1745829032360,-300.0,0.00027887,2]
[359216515,1745829032370,-300.0,0.00027898,2]
[359216516,1745829032379,-300.0,0.00027898,2]
[359216518,1745829032388,-592.21772614,0.000279,7]
[359216520,1745829032397,-3776.8185434,0.00028,30]
[359216534,1745829038278,-1468.21232267,0.00028,30]
[359216535,1745829038289,-527.10822493,0.00028,13]
[359216536,1745829038299,-318.0053918,0.00028146,2]
[359216537,1745829038308,-933.07542987,0.00028273,2]
[359216538,1745829038318,-430.60743066,0.00028293,2]
[359216539,1745829038327,-217.58098176,0.00028294,2]
[359216540,1745829038336,-971.26046681,0.00028294,2]
[359216541,1745829038346,-217.58098173,0.00028314,2]
[359216542,1745829038355,-592.21772613,0.00028314,7]
[359216543,1745829038365,-217.58098173,0.00028334,2]
[359216544,1745829038376,-217.58098173,0.00028353,2]
[359216545,1745829038385,-500.0,0.00028373,4]
[359216546,1745829038394,-300.0,0.00028373,5]
[359216547,1745829038404,-500.0,0.00028373,5]
[359216548,1745829038413,-500.0,0.00028373,5]
[359216549,1745829038423,-217.58098173,0.00028373,2]
[359216550,1745829038432,-212.34075821,0.00028383,2]
[359216551,1745829038441,-500.0,0.00028383,2]
[359216553,1745829038450,-191.25267147,0.00028383,2]
[359216555,1745829038459,-500.0,0.00028383,2]
[359216556,1745829038469,-174.75443596,0.00028383,2]
[359216557,1745829038478,-542.437182,0.00028383,2]
[359216558,1745829038487,-271.96660082,0.00028383,2]
[359216559,1745829038496,-500.0,0.00028383,2]
[359216561,1745829038506,-392.74218,0.00028383,2]
[359216562,1745829038515,-500.0,0.00028383,2]
[359216564,1745829038524,-500.0,0.00028383,2]
[359216565,1745829038534,-310.29773117,0.00028383,2]
[359216566,1745829038545,-1513.01896495,0.00028384,2]
[359216567,1745829038555,-166193.72705096,0.00028384,2]
[359216568,1745829038567,-7980.81612359,0.00028384,2]
[359216569,1745829038579,-58831.83255835,0.00028384,2]
[359216570,1745829038591,-2064.8091959,0.00028384,2]
[359216571,1745829038603,-388.84957946,0.00028384,2]
[359216579,1745829040556,-7435.41270457,0.00028384,2]
[359216600,1745829043291,-2061.52148577,0.00028384,2]
[359216601,1745829043344,-9496.55460773,0.00028384,2]
[359216608,1745829046372,-700.59853048,0.00028384,2]
[359216609,1745829046428,-61795.54595935,0.00028384,2]
[359216641,1745829303910,-243.81917871,0.000158,2]
[359216809,1745829930128,-385.2409705,0.00015642,2]
[359216811,1745829942097,-1070.31506545,0.00015642,2]
[359216812,1745829942117,-797.81989267,0.000158,2]
[359216821,1745830029105,-214.59321436,0.000158,2]
[359216822,1745830031093,-271.07234286,0.000158,2]
[359216823,1745830034091,-1038.30617209,0.000158,2]
[359216827,1745830047078,-436.42741578,0.000158,2]
[359216828,1745830048080,-251.50587628,0.000158,2]
[359216829,1745830049135,-590.74705093,0.000158,2]
[359216830,1745830049158,-165.58462432,0.00025373,2]
[359216831,1745830049180,-240.0525584,0.00025474,2]
[359216832,1745830049202,-188.3711552,0.00025846,2]
[359216833,1745830049222,-500.0,0.00026,30]
[359216834,1745830049243,-165.5846243,0.00026061,2]
[359216835,1745830049263,-324.6160755,0.00026243,2]
[359216836,1745830049283,-1200.0,0.00026574,2]
[359216837,1745830049309,-154.53,0.000266,31]
[359216838,1745830049333,-335.3980576,0.00026748,2]
[359216839,1745830049353,-300.0,0.00026845,2]
[359216840,1745830049374,-300.0,0.00026845,2]
[359216841,1745830049395,-409.05358175,0.00026846,2]
[359216842,1745830049424,-361.93653919,0.00026846,2]
[359216850,1745830172072,-473.43508204,0.00025,30]
[359216864,1745830232504,-26.56491796,0.00025,30]
[359216865,1745830232514,-36220.46067218,0.00025204,7]
[359216866,1745830232523,-472.05066438,0.00025962,2]
[359216867,1745830232533,-500.0,0.00026,30]
[359216868,1745830232542,-165.5846243,0.00026749,2]
[359216869,1745830232552,-300.0,0.00026843,2]
[359216870,1745830232561,-300.0,0.00026843,2]
[359216871,1745830232571,-1200.0,0.00026843,2]
[359216872,1745830232580,-275.0016022,0.00026849,2]
[359216873,1745830232589,-175.090499,0.00026898,2]
[359216875,1745830232598,-552.73654462,0.000269,7]
[359216876,1745830232607,-300.0,0.000269,2]
[359216877,1745830232619,-234.62082756,0.00027148,2]
[359216878,1745830232628,-151.0,0.00027166,2]
[359216879,1745830232638,-207.4,0.00027166,2]
[359216881,1745830232647,-500.0,0.000272,2]
[359216882,1745830232656,-505.74932326,0.000272,2]
[359216883,1745830232666,-500.0,0.000272,2]
[359216884,1745830232675,-502.59911486,0.000272,2]
[359216885,1745830232684,-508.24817822,0.000272,2]
[359216886,1745830232696,-3183.4520261,0.00027248,4]
[359216887,1745830232705,-552.73654438,0.00027348,7]
[359216888,1745830232713,-703.14943251,0.00027397,2]
[359216900,1745830238366,-411.43124799,0.00025999,2]
[359216907,1745830238420,-88.56875201,0.00025999,2]
[359216909,1745830238430,-500.0,0.00025999,2]
[359216911,1745830238440,-500.0,0.00025999,2]
[359216913,1745830238450,-500.0,0.00025999,2]
[359216915,1745830238460,-500.0,0.00025999,2]
[359216917,1745830238470,-500.0,0.00025999,2]
[359216919,1745830238480,-500.0,0.00025999,2]
[359216921,1745830238490,-500.0,0.00025999,2]
[359216923,1745830238499,-500.0,0.00025999,2]
[359216925,1745830238508,-500.0,0.00025999,2]
[359216927,1745830238518,-500.0,0.00025999,2]
[359216929,1745830238527,-500.0,0.00025999,2]
[359216931,1745830238537,-500.0,0.00025999,2]
[359216933,1745830238547,-500.0,0.00025999,2]
[359216935,1745830238556,-500.0,0.00025999,2]
[359216937,1745830238567,-500.0,0.00025999,2]
[359216939,1745830238577,-500.0,0.00025999,2]
[359216941,1745830238586,-163.64921008,0.00025999,2]
[359216943,1745830238596,-500.0,0.00025999,2]
[359216945,1745830238605,-500.0,0.00025999,2]
[359216947,1745830238615,-500.0,0.00025999,2]
[359216951,1745830238627,-500.0,0.00025999,2]
[359216953,1745830238637,-500.0,0.00025999,2]
[359216954,1745830238646,-500.0,0.00025999,2]
[359216955,1745830238656,-500.0,0.00025999,2]
[359216956,1745830238667,-295.95147049,0.00027397,2]
[359216957,1745830238676,-340.67272397,0.00027397,120]
[359216958,1745830238688,-1529.32772703,0.00027397,120]
[359216959,1745830238699,-500.0,0.00027397,5]
[359216960,1745830238708,-317.2089362,0.00027781,30]
[359216961,1745830238718,-310.738508,0.00027781,30]
[359216962,1745830238728,-157.3664837,0.00027781,30]
[359216963,1745830238737,-157.3664837,0.00027781,30]
[359216964,1745830238747,-157.3664837,0.00027781,30]
[359216965,1745830238756,-157.3664837,0.00027781,30]
[359216966,1745830238765,-567.0839203,0.00027781,30]
[359216967,1745830238774,-567.0839203,0.00027781,30]
[359216968,1745830238784,-541.7540736,0.00027781,30]
[359216969,1745830238804,-25.3298467,0.00027781,30]
[359216970,1745830238813,-567.0839203,0.00027781,30]
[359216971,1745830238823,-157.3664837,0.00027781,30]
[359216972,1745830238832,-567.0839203,0.00027781,30]
[359216973,1745830238842,-567.0839203,0.00027781,30]
[359216974,1745830238851,-268.8348087,0.00027781,30]
[359216975,1745830238863,-298.2491116,0.00027781,30]
[359216976,1745830238873,-314.5555246,0.00027781,30]
[359216977,1745830238882,-567.0839203,0.00027781,30]
[359216978,1745830238891,-157.3664837,0.00027781,30]
[359216979,1745830238900,-567.0839203,0.00027781,30]
[359216980,1745830238910,-567.0839203,0.00027781,30]
[359216981,1745830238920,-157.3664837,0.00027781,30]
[359216982,1745830238929,-157.3664837,0.00027781,30]
[359216983,1745830238939,-567.0839203,0.00027781,30]
[359216984,1745830238948,-157.3664837,0.00027781,30]
[359216985,1745830238957,-157.3664837,0.00027781,30]
[359216986,1745830238967,-157.3664837,0.00027781,30]
[359216987,1745830238976,-552.73654438,0.00027797,7]
[359216988,1745830238986,-318.0053912,0.00027891,2]
[359216989,1745830238995,-1000.0,0.00028,28]
[359216990,1745830239005,-160.0,0.00028134,2]
[359216991,1745830239015,-318.0053913,0.00028216,2]
[359216992,1745830239024,-552.73654438,0.00028245,7]
[359216993,1745830239033,-500.0,0.00028383,2]
[359216994,1745830239043,-344.94469813,0.00028383,2]
[359216995,1745830239052,-197.22286344,0.00028383,2]
[359216996,1745830239062,-580.13425914,0.00028383,2]
[359216997,1745830239071,-500.0,0.00028383,2]
[359216998,1745830239081,-445.81172929,0.00028383,2]
[359216999,1745830239091,-500.0,0.00028383,2]
[359217000,1745830239100,-509.10840966,0.00028384,2]
[359217001,1745830239110,-36924.81252202,0.00028384,2]
[359217002,1745830239326,-10752.1235128,0.00028384,2]
[359217003,1745830239337,-2101.11184565,0.00028384,2]
[359217004,1745830239348,-7390.75415426,0.00028384,2]
[359217005,1745830239360,-75433.86712227,0.00028384,2]
[359217006,1745830239370,-756.50948248,0.00028394,2]
[359217007,1745830239379,-9154.29074775,0.00028394,2]
[359217025,1745830243135,-1687.31251793,0.00025999,2]
[359217026,1745830243147,-4436.71785262,0.00025999,2]
[359217028,1745830243190,-32654.42411958,0.00025999,2]
[359217029,1745830243201,-249.993024,0.00025999,2]
[359217034,1745830243244,-4501.79506491,0.00025999,2]
[359217036,1745830243253,-157.3664837,0.00027781,30]
[359217038,1745830243263,-164164.38196276,0.00028394,2]
[359217040,1745830243532,-23.32596055,0.00028394,2]
[359217041,1745830243559,-17578.78869017,0.00028394,2]
[359217050,1745830246647,-1110.9209437,0.00027781,30]
[359217051,1745830246657,-7983.21637377,0.00028394,2]
[359217052,1745830246667,-160.0,0.00028403,10]
[359217053,1745830246677,-269.5589256,0.00028403,10]
[359217054,1745830246688,-2637.17784334,0.00028404,5]
[359217218,1745831145628,-151.0,0.00018585,2]
[359217219,1745831145651,-151.0,0.00019954,2]
[359217220,1745831145673,-151.0,0.00021323,2]
[359217221,1745831145694,-151.0,0.00022692,2]
[359217222,1745831145715,-200.29987475,0.00023961,2]
[359217223,1745831145736,-220.48538996,0.00024061,2]
[359217224,1745831145757,-200.29987471,0.00024571,2]
[359217225,1745831145778,-200.29987471,0.00025181,2]
[359217226,1745831145798,-200.29987471,0.0002579,2]
[359217227,1745831145820,-196.35935203,0.00026399,2]
[359217241,1745831227128,-162.42206805,0.00018585,2]
[359217242,1745831235072,-117.71832456,0.00018585,2]
[359217243,1745831235095,-249.17145471,0.00025719,2]
[359217244,1745831244088,-1.33232515,0.00025719,2]
[359217245,1745831244109,-200.29987471,0.00026299,2]
[359217246,1745831244130,-300.0,0.00026399,2]
[359217247,1745831244152,-654.0,0.00026399,2]
[359217248,1745831244174,-300.0,0.00026399,2]
[359217249,1745831244195,-1113.38097475,0.000264,2]
[359217250,1745831252087,-280.74835689,0.00026,30]
[359217449,1745831432618,-221.27165349,0.00026,30]
[359217450,1745831432628,-157.79439489,0.00026399,2]
[359217463,1745831438655,-142.20560511,0.00026399,2]
[359217464,1745831438665,-5981.98751867,0.000264,2]
[359217465,1745831438677,-11924.41426105,0.000264,2]
[359217466,1745831438687,-1000.0,0.000265,2]
[359217467,1745831438696,-154.69,0.000266,31]
[359217468,1745831438705,-176.291498,0.00026884,2]
[359217469,1745831438714,-500.0,0.00026897,2]
[359217470,1745831438724,-500.0,0.00026897,2]
[359217471,1745831438733,-558.1147565,0.00026897,2]
[359217472,1745831438742,-500.0,0.00026897,2]
[359217473,1745831438751,-500.0,0.00026897,2]
[359217474,1745831438760,-500.0,0.00026897,2]
[359217475,1745831438770,-508.02864596,0.00026897,2]
[359217476,1745831438779,-500.0,0.00026897,2]
[359217478,1745831438788,-500.0,0.00026897,2]
[359217479,1745831438797,-500.0,0.00026897,2]
[359217480,1745831438806,-500.0,0.00026897,2]
[359217481,1745831438815,-500.0,0.00026897,2]
[359217482,1745831438824,-500.0,0.00026897,2]
[359217483,1745831438834,-500.0,0.00026897,2]
[359217484,1745831438843,-216.36492101,0.00026897,2]
[359217485,1745831438851,-500.0,0.00026897,2]
[359217486,1745831438861,-500.0,0.00026897,2]
[359217487,1745831438870,-500.0,0.00026897,2]
[359217488,1745831438880,-500.0,0.00026897,2]
[359217489,1745831438889,-500.0,0.00026897,2]
[359217490,1745831438898,-500.0,0.00026897,2]
[359217491,1745831438908,-500.0,0.00026897,2]
[359217492,1745831438917,-500.0,0.00026897,2]
[359217493,1745831438927,-500.0,0.00026897,2]
[359217494,1745831438936,-500.0,0.00026897,2]
[359217495,1745831438945,-500.0,0.00026897,2]
[359217496,1745831438955,-500.0,0.00026897,2]
[359217497,1745831438964,-500.0,0.00026897,2]
[359217498,1745831438974,-500.0,0.00026897,2]
[359217499,1745831438983,-500.0,0.00026897,2]
[359217500,1745831438993,-500.0,0.00026897,2]
[359217501,1745831439003,-500.0,0.00026897,2]
[359217502,1745831439014,-500.0,0.00026897,2]
[359217503,1745831439024,-500.0,0.00026897,2]
[359217504,1745831439034,-500.0,0.00026897,2]
[359217505,1745831439043,-500.0,0.00026897,2]
[359217506,1745831439053,-500.0,0.00026897,2]
[359217507,1745831439062,-399.91898401,0.00026897,2]
[359217508,1745831439071,-500.0,0.00026897,2]
[359217509,1745831439080,-500.0,0.00026897,2]
[359217510,1745831439090,-500.0,0.00026897,2]
[359217511,1745831439099,-500.0,0.00026897,2]
[359217512,1745831439109,-500.0,0.00026897,2]
[359217513,1745831439118,-500.0,0.00026897,2]
[359217514,1745831439129,-500.0,0.00026897,2]
[359217515,1745831439138,-500.0,0.00026897,2]
[359217516,1745831439148,-500.0,0.00026897,2]
[359217517,1745831439157,-500.0,0.00026897,2]
[359217518,1745831439167,-500.0,0.00026897,2]
[359217519,1745831439176,-500.0,0.00026897,2]
[359217520,1745831439186,-500.0,0.00026897,2]
[359217521,1745831439196,-1944.76624128,0.00026899,2]
[359217522,1745831439205,-479.03833854,0.000269,7]
[359217523,1745831439215,-567.0839203,0.00026959,2]
[359217524,1745831439336,-157.3664837,0.00026959,2]
[359217525,1745831439346,-567.0839203,0.00026959,2]
[359217526,1745831439356,-151.0,0.00027113,2]
[359217527,1745831439366,-207.4,0.00027113,2]
[359217528,1745831439375,-2605.1948891,0.00027248,4]
[359217529,1745831439384,-479.03833846,0.00027348,7]
[359217530,1745831439394,-949.145857,0.00027397,2]
[359217531,1745831439404,-1402.500338,0.00027397,120]
[359217532,1745831439413,-1133.9509357,0.00027478,30]
[359217533,1745831439422,-567.0839203,0.00027478,30]
[359217534,1745831439432,-567.0839203,0.00027478,30]
[359217535,1745831439441,-314.3841748,0.00027478,30]
[359217536,1745831439451,-157.3664837,0.00027578,30]
[359217537,1745831439460,-567.0839203,0.00027578,30]
[359217538,1745831439469,-157.3664837,0.00027578,30]
[359217539,1745831439478,-567.0839203,0.00027578,30]
[359217540,1745831439488,-567.0839203,0.00027781,30]
[359217541,1745831439497,-567.0839203,0.00027781,30]
[359217542,1745831439506,-567.0839203,0.00027781,30]
[359217543,1745831439515,-567.0839203,0.00027781,30]
[359217544,1745831439525,-157.3664837,0.00027781,30]
[359217545,1745831439534,-1133.5171259,0.00027781,30]
[359217546,1745831439544,-561.227488,0.00027781,30]
[359217547,1745831439553,-314.7329674,0.00027781,30]
[359217548,1745831439562,-567.0839203,0.00027781,30]
[359217549,1745831439571,-567.0839203,0.00027781,30]
[359217550,1745831439580,-567.0839203,0.00027781,30]
[359217551,1745831439589,-479.03833846,0.00027797,7]
[359217552,1745831439598,-314.69283534,0.00027856,2]
[359217553,1745831439608,-154.97048864,0.00027966,2]
[359217554,1745831439617,-314.69283534,0.00027982,2]
[359217555,1745831439626,-500.0,0.00027989,2]
[359217556,1745831439639,-241.46128869,0.00027989,2]
[359217557,1745831439649,-459.46787805,0.00027989,2]
[359217558,1745831439658,-500.0,0.00027989,2]
[359217559,1745831439668,-512.0682105,0.00027989,2]
[359217560,1745831439677,-1156.03838705,0.0002799,2]
[359217561,1745831439690,-10766.38828084,0.0002799,2]
[359217562,1745831439701,-1809.12834655,0.0002799,2]
[359217563,1745831439712,-7714.51705589,0.0002799,2]
[359217622,1745831446713,-157.3664837,0.00026959,2]
[359217623,1745831446722,-567.0839203,0.00026959,2]
[359217624,1745831446732,-9937.70683457,0.0002799,2]
[359217625,1745831446768,-1107.20595521,0.0002799,2]
[359217626,1745831446780,-2751.78353065,0.0002799,2]
[359217627,1745831446822,-307.32000001,0.0002799,2]
[359217688,1745832335192,-1305.36720949,0.0001644,2]
[359217692,1745832348099,-1883.39408496,0.0001644,2]
[359217697,1745832425098,-469.62927907,0.0001644,2]
[359217699,1745832428083,-614.02452794,0.0001644,2]
[359217700,1745832444091,-440.92613103,0.0001644,2]
[359217701,1745832447087,-792.54881449,0.0001644,2]
[359217702,1745832447109,-1000.0,0.0001645,2]
[359217703,1745832447133,-154.46914025,0.000249,5]
[359217725,1745832551095,-152.68707532,0.0001635,2]
[359217726,1745832551116,-827.31292468,0.0002,2]
[359217727,1745832553136,-26.89487803,0.0002,2]
[359217728,1745832553157,-280.6140221,0.00024999,2]
[359217751,1745832631754,-3094.17769141,0.00025,2]
[359217752,1745832631810,-1905.82230859,0.00025,2]
[359217753,1745832631819,-425.98553334,0.000259,6]
[359217754,1745832631829,-270.375381,0.00026167,2]
[359217755,1745832631838,-425.98553327,0.00026383,6]
[359217757,1745832631848,-708.9279623,0.00026388,2]
[359217759,1745832631857,-191.570648,0.00026575,2]
[359217761,1745832631867,-154.82,0.000266,31]
[359217763,1745832631876,-765.37917244,0.00026796,2]
[359217764,1745832631886,-300.0,0.00026848,2]
[359217765,1745832631895,-300.0,0.00026848,2]
[359217766,1745832631905,-425.98553327,0.00026866,7]
[359217767,1745832631914,-5000.0,0.0002687,2]
[359217768,1745832631923,-151.0,0.00027113,2]
[359217769,1745832631933,-207.4,0.00027113,2]
[359217770,1745832631942,-2827.0689581,0.00027248,4]
[359217771,1745832631952,-425.98553327,0.00027348,7]
[359217772,1745832631962,-1051.875253,0.00027397,120]
[359217773,1745832631972,-1199.16194251,0.000278,2]
[359217774,1745832631981,-425.98553327,0.00027831,7]
[359217775,1745832631991,-932.55049906,0.0002787,2]
[359217911,1745832637890,-500.0,0.00027394,2]
[359217913,1745832637900,-500.0,0.00027394,2]
[359217915,1745832637909,-500.0,0.00027394,2]
[359217917,1745832637918,-500.0,0.00027394,2]
[359217919,1745832637927,-500.0,0.00027394,2]
[359217921,1745832637937,-500.0,0.00027394,2]
[359217923,1745832637946,-500.0,0.00027394,2]
[359217925,1745832637956,-24.81047749,0.00027394,2]
[359217927,1745832637969,-475.18952251,0.00027394,2]
[359217929,1745832637978,-500.0,0.00027394,2]
[359217931,1745832637987,-522.21625679,0.00027394,2]
[359217933,1745832637997,-189.9918984,0.00027394,2]
[359217935,1745832638006,-500.0,0.00027394,2]
[359217937,1745832638015,-476.99914369,0.00027394,2]
[359217939,1745832638024,-500.0,0.00027394,2]
[359217941,1745832638034,-500.0,0.00027394,2]
[359217943,1745832638043,-500.0,0.00027394,2]
[359217945,1745832638052,-500.0,0.00027394,2]
[359217947,1745832638062,-951.231535,0.00027397,2]
[359217953,1745832638187,-4067.44950094,0.0002787,2]
[359217955,1745832638197,-154.97048864,0.000279,2]
[359217957,1745832638206,-413.8483167,0.00027928,30]
[359217958,1745832638216,-361.7792701,0.00027928,30]
[359217959,1745832638225,-361.7792701,0.00027928,30]
[359217961,1745832638234,-857.9561119,0.00027928,30]
[359217963,1745832638243,-361.7792701,0.00027928,30]
[359217964,1745832638252,-361.7792701,0.00027928,30]
[359217965,1745832638261,-361.7792701,0.00027928,30]
[359217966,1745832638270,-361.7792701,0.00027928,30]
[359217967,1745832638279,-361.7792701,0.00027928,30]
[359217968,1745832638289,-361.7792701,0.00027928,30]
[359217969,1745832638298,-361.7792701,0.00027928,30]
[359217970,1745832638308,-361.7792701,0.00027928,30]
[359217971,1745832638317,-361.7792701,0.00027928,30]
[359217972,1745832638326,-361.7792701,0.00027928,30]
[359217973,1745832638337,-361.7792701,0.00027928,30]
[359217974,1745832638346,-361.7792701,0.00027928,30]
[359217975,1745832638355,-361.7792701,0.00027928,30]
[359217976,1745832638365,-500.0,0.00027928,30]
[359217977,1745832638374,-49114.6230776,0.0002799,2]
[359217978,1745832638383,-226.604,0.00027998,18]
[359217979,1745832638393,-500.0,0.00027999,2]
[359217980,1745832638405,-169.02290209,0.00027999,2]
[359217981,1745832638415,-171.62751463,0.00027999,2]
[359217982,1745832638424,-208.44774735,0.00027999,2]
[359217983,1745832638435,-500.0,0.00027999,2]
[359217984,1745832638444,-378.25474124,0.00028,2]
[359217985,1745832638454,-25350.69134659,0.00028,15]
[359217992,1745832640189,-597.95323649,0.00028,15]
[359218024,1745832646016,-1575.57336731,0.00028,15]
[359218131,1745833387673,1455.55603595,0.00021,10]
[359218260,1745833546098,-151.0,0.00018585,2]
[359218261,1745833546118,-240.052557,0.00026335,2]
[359218262,1745833546138,-86.2010374,0.000265,2]
[359218264,1745833559230,-881.56902715,0.000265,2]
[359218265,1745833559260,-154.95,0.000266,31]
[359218266,1745833559282,-187.794218,0.00026644,2]
[359218267,1745833559302,-645.34762565,0.00026994,2]
[359218316,1745833631120,-93.99879054,0.00026994,2]
[359218317,1745833631139,-151.0,0.00027113,2]
[359218318,1745833631160,-27.04115373,0.00027113,2]
[359218319,1745833634082,-180.35884627,0.00027113,2]
[359218320,1745833634103,-71.14703001,0.00027148,2]
[359218323,1745833640097,-178.85296999,0.00027148,2]
[359218324,1745833640120,-426.63349968,0.00027247,2]
[359218325,1745833640149,-773.36650032,0.00027247,2]
[359218326,1745833640170,-279.28354084,0.00027248,4]
[359218327,1745833651161,-500.0,0.00026,30]
[359218328,1745833651193,-1982.37162556,0.00027248,4]
[359218329,1745833651221,-300.0,0.00027395,2]
[359218330,1745833651249,-300.0,0.00027396,2]
[359218331,1745833651280,-1691.31766771,0.00027397,2]
[359218332,1745833653142,-165.58462431,0.00027295,2]
[359218333,1745833653164,-843.29921896,0.00027397,2]
[359218369,1745833831851,-187.794218,0.00026334,2]
[359218371,1745833831860,-335.3980576,0.00026471,2]
[359218372,1745833831870,-324.6160755,0.00026547,2]
[359218374,1745833831880,-151.0,0.00027113,2]
[359218376,1745833831890,-207.4,0.00027113,2]
[359218378,1745833831899,-1809.3241332,0.00027248,4]
[359218379,1745833831908,-300.0,0.00027396,2]
[359218381,1745833831918,-300.0,0.00027396,2]
[359218383,1745833831927,-1200.0,0.00027396,2]
[359218384,1745833831936,-235.30430956,0.00027397,2]
[359218386,1745833831945,-561.9,0.00027397,2]
[359218388,1745833831955,-1005.88,0.00027397,2]
[359218390,1745833831964,-238.9730913,0.00027397,2]
[359218391,1745833831974,-575.67,0.00027397,2]
[359218393,1745833831983,-5705.29,0.00027397,2]
[359218395,1745833831993,-788.906439,0.00027397,120]
[359218396,1745833832002,-5267.19574704,0.00027397,2]
[359218398,1745833832013,-500.0,0.00027397,5]
[359218400,1745833832029,-165.58462431,0.00027681,2]
[359218402,1745833832045,-1162.79867732,0.00027681,2]
[359218404,1745833832058,-313.78459197,0.0002778,2]
[359218407,1745833832072,-500.0,0.0002778,2]
[359218409,1745833832087,-500.0,0.0002778,2]
[359218411,1745833832102,-576.66576649,0.0002778,2]
[359218412,1745833832117,-222.59471978,0.0002778,2]
[359218413,1745833832131,-400.0,0.0002778,2]
[359218414,1745833832144,-400.0,0.0002778,2]
[359218415,1745833832158,-400.0,0.0002778,2]
[359218416,1745833832173,-400.0,0.0002778,2]
[359218417,1745833832187,-437.26,0.0002778,2]
[359218418,1745833832199,-400.0,0.0002778,2]
[359218419,1745833832211,-400.0,0.0002778,2]
[359218420,1745833832225,-783.55,0.0002778,2]
[359218421,1745833832240,-400.0,0.0002778,2]
[359218422,1745833832254,-207.83954205,0.0002778,2]
[359218423,1745833832296,-300.83331763,0.0002778,2]
[359218424,1745833832307,-400.0,0.0002778,2]
[359218425,1745833832321,-400.0,0.0002778,2]
[359218426,1745833832337,-439.26591271,0.0002778,2]
[359218428,1745833832348,-400.0,0.0002778,2]
[359218429,1745833832361,-1577.38,0.0002778,2]
[359218430,1745833832376,-400.0,0.0002778,2]
[359218432,1745833832388,-567.0839203,0.00027781,30]
[359218434,1745833832400,-567.0839203,0.00027781,30]
[359218436,1745833832415,-2641.6,0.00027781,30]
[359218438,1745833832427,-49.50074186,0.00027781,30]
[359218502,1745833837921,-495.91342315,0.0002778,2]
[359218504,1745833837931,-170.7692191,0.0002778,2]
[359218526,1745833838130,-299.37004114,0.0002778,2]
[359218528,1745833838140,-400.0,0.0002778,2]
[359218530,1745833838150,-493.01213752,0.00027781,30]
[359218627,1745833840392,-2099.08712062,0.00027781,30]
[359218628,1745833840401,-232.53312743,0.00027781,30]
[359218638,1745833843186,-2092.48,0.0002778,2]
[359218639,1745833843196,-2409.06687257,0.00027781,30]
[359218640,1745833843206,-2641.6,0.00027781,30]
[359218641,1745833843215,-2641.6,0.00027781,30]
[359218642,1745833843225,-2641.6,0.00027781,30]
[359218643,1745833843235,-2641.6,0.00027781,30]
[359218644,1745833843244,-2641.6,0.00027781,30]
[359218645,1745833843254,-2641.6,0.00027781,30]
[359218646,1745833843263,-2641.6,0.00027781,30]
[359218647,1745833843273,-2641.6,0.00027781,30]
[359218648,1745833843283,-2641.6,0.00027781,30]
[359218649,1745833843292,-2641.6,0.00027781,30]
[359218650,1745833843302,-2641.6,0.00027781,30]
[359218651,1745833843312,-2641.6,0.00027781,30]
[359218652,1745833843321,-2641.6,0.00027781,30]
[359218653,1745833843331,-2641.6,0.00027781,30]
[359218654,1745833843340,-2641.6,0.00027781,30]